[Event "Early-Titled-Tuesday-Blitz-May-14-2024"]
[Site "Chess.com"]
[Date "2024.05.14"]
[Round "7"]
[White "Jospem"]
[Black "David_Arutinian"]
[Result "1-0"]
[WhiteElo "2996"]
[BlackElo "2837"]
[TimeControl "180+1"]
[EndTime "9:19:33 PDT"]
[Termination "Jospem won by resignation"]

1. e4 {[%clk 0:03:00.9]} 1... c6 {[%clk 0:03:00.1]} 2. d4 {[%clk 0:03:01]} 2...
d5 {[%clk 0:03:01]} 3. e5 {[%clk 0:03:01.2]} 3... Bf5 {[%clk 0:03:00.7]} 4. h4
{[%clk 0:03:01.6]} 4... h5 {[%clk 0:03:00.6]} 5. Bd3 {[%clk 0:03:02.2]} 5...
Bxd3 {[%clk 0:02:59.4]} 6. Qxd3 {[%clk 0:03:03.1]} 6... Qa5+ {[%clk 0:02:59.9]}
7. b4 {[%clk 0:03:03.9]} 7... Qa6 {[%clk 0:03:00]} 8. e6 {[%clk 0:03:04.4]} 8...
Qxd3 {[%clk 0:02:57.8]} 9. cxd3 {[%clk 0:03:05.3]} 9... fxe6 {[%clk 0:02:57.2]}
10. Nd2 {[%clk 0:03:04.8]} 10... e5 {[%clk 0:02:48.2]} 11. dxe5 {[%clk
0:03:05.7]} 11... e6 {[%clk 0:02:48.7]} 12. Rb1 {[%clk 0:03:03.6]} 12... Na6
{[%clk 0:02:44.1]} 13. a3 {[%clk 0:03:03.5]} 13... Nc7 {[%clk 0:02:43.8]} 14.
Ndf3 {[%clk 0:03:03.7]} 14... Ne7 {[%clk 0:02:43.8]} 15. Nh3 {[%clk 0:03:04.1]}
15... Nf5 {[%clk 0:02:43.2]} 16. O-O {[%clk 0:03:03.6]} 16... Be7 {[%clk
0:02:42.6]} 17. g3 {[%clk 0:03:03.6]} 17... Kd7 {[%clk 0:02:40.6]} 18. a4 {[%clk
0:03:00.5]} 18... a6 {[%clk 0:02:33.9]} 19. Nf4 {[%clk 0:02:58]} 19... Rag8
{[%clk 0:02:11.4]} 20. Kg2 {[%clk 0:02:46.8]} 20... g6 {[%clk 0:02:11.7]} 21.
Bd2 {[%clk 0:02:45.9]} 21... Rh7 {[%clk 0:02:11.6]} 22. Ne2 {[%clk 0:02:35.2]}
22... Rf7 {[%clk 0:02:04.1]} 23. d4 {[%clk 0:02:30.5]} 23... Rh8 {[%clk
0:01:45.1]} 24. Nf4 {[%clk 0:02:24.1]} 24... Rg8 {[%clk 0:01:44.9]} 25. Nd3
{[%clk 0:02:23.7]} 25... Kc8 {[%clk 0:01:40.1]} 26. Rfc1 {[%clk 0:02:13.4]}
26... Rgf8 {[%clk 0:01:40]} 27. Nf4 {[%clk 0:02:03.4]} 27... Nxh4+ {[%clk
0:01:33.2]} 28. Nxh4 {[%clk 0:01:47.7]} 28... Bxh4 {[%clk 0:01:31.9]} 29. b5
{[%clk 0:01:48.2]} 29... axb5 {[%clk 0:01:30.6]} 30. axb5 {[%clk 0:01:49.1]}
30... g5 {[%clk 0:01:11.7]} 31. Nd3 {[%clk 0:01:40.2]} 31... Rf3 {[%clk
0:01:07.6]} 32. Rc3 {[%clk 0:01:27.8]} 32... Bxg3 {[%clk 0:01:02.8]} 33. fxg3
{[%clk 0:01:28.7]} 33... h4 {[%clk 0:01:03.4]} 34. Be1 {[%clk 0:01:23.8]} 34...
Re3 {[%clk 0:00:52.4]} 35. bxc6 {[%clk 0:01:18.5]} 35... bxc6 {[%clk 0:00:52.7]}
36. Bf2 {[%clk 0:00:50.4]} 36... h3+ {[%clk 0:00:46.8]} 37. Kg1 {[%clk
0:00:44.4]} 37... h2+ {[%clk 0:00:46.5]} 38. Kg2 {[%clk 0:00:44.4]} 38... Re2
{[%clk 0:00:31.1]} 39. Kxh2 {[%clk 0:00:41.5]} 39... Rfxf2+ {[%clk 0:00:26.1]}
40. Nxf2 {[%clk 0:00:42.4]} 40... Rxf2+ {[%clk 0:00:27]} 41. Kh3 {[%clk
0:00:42.7]} 41... Rd2 {[%clk 0:00:25.6]} 42. Rxc6 {[%clk 0:00:41.3]} 42... Kd7
{[%clk 0:00:25.4]} 43. Rd6+ {[%clk 0:00:41.6]} 43... Kc8 {[%clk 0:00:24.1]} 44.
Rc1 {[%clk 0:00:41.7]} 44... Rxd4 {[%clk 0:00:24.3]} 45. Rdc6 {[%clk 0:00:41.5]}
45... Rc4 {[%clk 0:00:24.2]} 46. R1xc4 {[%clk 0:00:41.7]} 46... dxc4 {[%clk
0:00:25.1]} 47. Rxc4 {[%clk 0:00:41.8]} 47... Kd7 {[%clk 0:00:25.8]} 48. Rxc7+
{[%clk 0:00:35.5]} 48... Kxc7 {[%clk 0:00:25.5]} 49. Kg4 {[%clk 0:00:36.4]} 1-0

[Event "Early-Titled-Tuesday-Blitz-May-14-2024"]
[Site "Chess.com"]
[Date "2024.05.14"]
[Round "7"]
[White "the_chess_child"]
[Black "h4parah5"]
[Result "0-1"]
[WhiteElo "2892"]
[BlackElo "3050"]
[TimeControl "180+1"]
[EndTime "9:19:36 PDT"]
[Termination "h4parah5 won by checkmate"]

1. e4 {[%clk 0:03:00.9]} 1... c5 {[%clk 0:02:59.8]} 2. Nf3 {[%clk 0:03:00.4]}
2... Nc6 {[%clk 0:02:59.9]} 3. d3 {[%clk 0:03:00]} 3... g6 {[%clk 0:02:58.5]} 4.
g3 {[%clk 0:02:59.9]} 4... Bg7 {[%clk 0:02:58.4]} 5. Bg2 {[%clk 0:03:00.5]} 5...
e5 {[%clk 0:02:58.4]} 6. O-O {[%clk 0:03:00.5]} 6... Nge7 {[%clk 0:02:58.7]} 7.
Nc3 {[%clk 0:03:01.1]} 7... O-O {[%clk 0:02:58.3]} 8. Nd2 {[%clk 0:03:01.4]}
8... d6 {[%clk 0:02:57.6]} 9. Nc4 {[%clk 0:03:01.7]} 9... Be6 {[%clk 0:02:50]}
10. Nd5 {[%clk 0:03:00.6]} 10... f5 {[%clk 0:02:43.9]} 11. f4 {[%clk 0:02:49.9]}
11... Qd7 {[%clk 0:02:28.3]} 12. a4 {[%clk 0:02:40.8]} 12... Kh8 {[%clk
0:02:26]} 13. c3 {[%clk 0:02:40.6]} 13... Rf7 {[%clk 0:02:19.4]} 14. a5 {[%clk
0:02:25.9]} 14... Raf8 {[%clk 0:02:18]} 15. Bd2 {[%clk 0:02:25.8]} 15... fxe4
{[%clk 0:02:12.8]} 16. dxe4 {[%clk 0:02:24.5]} 16... exf4 {[%clk 0:02:10.4]} 17.
Bxf4 {[%clk 0:02:13.8]} 17... Nc8 {[%clk 0:01:57.7]} 18. Qd2 {[%clk 0:01:58]}
18... Bh3 {[%clk 0:01:32.3]} 19. Bxh3 {[%clk 0:01:24.1]} 19... Qxh3 {[%clk
0:01:33.2]} 20. Qg2 {[%clk 0:01:05.7]} 20... Qe6 {[%clk 0:01:32.9]} 21. Rad1
{[%clk 0:00:56.4]} 21... h6 {[%clk 0:01:29.6]} 22. h4 {[%clk 0:00:43.1]} 22...
Kh7 {[%clk 0:01:29.4]} 23. Nde3 {[%clk 0:00:42.4]} 23... Ne5 {[%clk 0:01:16]}
24. Bxe5 {[%clk 0:00:39.4]} 24... Bxe5 {[%clk 0:01:14.9]} 25. h5 {[%clk
0:00:25.9]} 25... Rxf1+ {[%clk 0:01:06.3]} 26. Rxf1 {[%clk 0:00:26.8]} 26...
Rxf1+ {[%clk 0:01:05.6]} 27. Qxf1 {[%clk 0:00:21.9]} 27... Bxg3 {[%clk
0:00:52.6]} 28. Qf8 {[%clk 0:00:21.5]} 28... Bh4 {[%clk 0:00:40.4]} 29. Kh2
{[%clk 0:00:09.9]} 29... Ne7 {[%clk 0:00:32.4]} 30. Qe8 {[%clk 0:00:08.1]} 30...
Qf6 {[%clk 0:00:28.4]} 31. Kh3 {[%clk 0:00:07.5]} 31... Qf3+ {[%clk 0:00:26.5]}
32. Kh2 {[%clk 0:00:07.3]} 32... Bg3+ {[%clk 0:00:25.7]} 33. Kh3 {[%clk
0:00:05.7]} 33... Bf2+ {[%clk 0:00:24.8]} 34. Kh2 {[%clk 0:00:05.6]} 34... Qg3+
{[%clk 0:00:25.1]} 35. Kh1 {[%clk 0:00:06.3]} 35... Qg1# {[%clk 0:00:25]} 0-1

[Event "Early-Titled-Tuesday-Blitz-May-14-2024"]
[Site "Chess.com"]
[Date "2024.05.14"]
[Round "7"]
[White "Kunalm64"]
[Black "KirAk47"]
[Result "1-0"]
[WhiteElo "2614"]
[BlackElo "2452"]
[TimeControl "180+1"]
[EndTime "9:19:36 PDT"]
[Termination "Kunalm64 won on time"]

1. d4 {[%clk 0:03:00]} 1... f5 {[%clk 0:02:52.2]} 2. Nc3 {[%clk 0:02:58]} 2...
Nf6 {[%clk 0:02:51.8]} 3. Bg5 {[%clk 0:02:58.6]} 3... d5 {[%clk 0:02:52.1]} 4.
Bxf6 {[%clk 0:02:58.3]} 4... Kf7 {[%clk 0:02:53]} 5. e3 {[%clk 0:02:48.3]} 5...
exf6 {[%clk 0:02:52.7]} 6. h4 {[%clk 0:02:42.9]} 6... Be6 {[%clk 0:02:35.3]} 7.
Nge2 {[%clk 0:02:35.2]} 7... Bd6 {[%clk 0:02:25.1]} 8. g3 {[%clk 0:02:34.6]}
8... c6 {[%clk 0:02:19.8]} 9. h5 {[%clk 0:02:33.1]} 9... g6 {[%clk 0:02:14.9]}
10. Nf4 {[%clk 0:02:31.5]} 10... Bxf4 {[%clk 0:02:12.1]} 11. gxf4 {[%clk
0:02:30.9]} 11... Nd7 {[%clk 0:02:03.1]} 12. Bd3 {[%clk 0:02:30]} 12... b5
{[%clk 0:02:01.8]} 13. Qf3 {[%clk 0:02:27.8]} 13... a5 {[%clk 0:01:46.7]} 14.
O-O-O {[%clk 0:02:25.2]} 14... a4 {[%clk 0:01:33.9]} 15. Rdg1 {[%clk 0:02:24]}
15... b4 {[%clk 0:01:20.6]} 16. Ne2 {[%clk 0:02:23.6]} 16... c5 {[%clk
0:01:18.4]} 17. dxc5 {[%clk 0:02:12.3]} 17... Nxc5 {[%clk 0:01:16.3]} 18. Nd4
{[%clk 0:02:12]} 18... Rc8 {[%clk 0:00:54.7]} 19. Kb1 {[%clk 0:02:10.9]} 19...
b3 {[%clk 0:00:45.7]} 20. Qg2 {[%clk 0:02:04.9]} 20... g5 {[%clk 0:00:09.9]} 21.
fxg5 {[%clk 0:02:03.3]} 21... fxg5 {[%clk 0:00:10.4]} 22. Qxg5 {[%clk
0:01:46.3]} 22... Qxg5 {[%clk 0:00:10.1]} 23. Rxg5 {[%clk 0:01:47]} 23... bxc2+
{[%clk 0:00:09.3]} 24. Bxc2 {[%clk 0:01:46.5]} 24... Ne4 {[%clk 0:00:07.5]} 25.
Bxe4 {[%clk 0:01:39.7]} 25... dxe4 {[%clk 0:00:07.1]} 26. Rhg1 {[%clk
0:01:39.7]} 26... Bc4 {[%clk 0:00:02.3]} 27. Rxf5+ {[%clk 0:01:39]} 27... Ke7
{[%clk 0:00:02.2]} 28. Rg7+ {[%clk 0:01:30.2]} 28... Kd6 {[%clk 0:00:01.3]} 29.
b3 {[%clk 0:01:22.8]} 29... Bd3+ {[%clk 0:00:01.4]} 30. Kb2 {[%clk 0:01:22.7]}
30... axb3 {[%clk 0:00:02.3]} 31. axb3 {[%clk 0:01:20.3]} 31... Rb8 {[%clk
0:00:02]} 32. Rf6+ {[%clk 0:01:16]} 32... Ke5 {[%clk 0:00:01.3]} 33. Re6+ {[%clk
0:01:15.7]} 33... Kd5 {[%clk 0:00:01.8]} 34. Rd7+ {[%clk 0:01:16]} 34... Kc5
{[%clk 0:00:02.3]} 35. Re5+ {[%clk 0:01:07.6]} 35... Kb6 {[%clk 0:00:01.7]} 36.
Rd6+ {[%clk 0:01:07.1]} 36... Kc7 {[%clk 0:00:01.8]} 37. Rc6+ {[%clk 0:01:04.8]}
37... Kd7 {[%clk 0:00:01.7]} 38. Rd5+ {[%clk 0:01:05]} 38... Ke7 {[%clk
0:00:02.2]} 39. Nf5+ {[%clk 0:01:05.3]} 39... Kf7 {[%clk 0:00:01.3]} 40. Rd7+
{[%clk 0:01:05.3]} 40... Ke8 {[%clk 0:00:01.2]} 41. Re7+ {[%clk 0:01:04.9]}
41... Kd8 {[%clk 0:00:01.5]} 42. Rd6+ {[%clk 0:00:54.2]} 42... Kc8 {[%clk
0:00:01.5]} 43. Rdd7 {[%clk 0:00:52.5]} 1-0

[Event "Early-Titled-Tuesday-Blitz-May-14-2024"]
[Site "Chess.com"]
[Date "2024.05.14"]
[Round "7"]
[White "TheAlienParty"]
[Black "slorovel"]
[Result "0-1"]
[WhiteElo "2422"]
[BlackElo "2555"]
[TimeControl "180+1"]
[EndTime "9:19:37 PDT"]
[Termination "slorovel won on time"]

1. c4 {[%clk 0:02:59.2]} 1... g6 {[%clk 0:03:00.1]} 2. Nf3 {[%clk 0:02:57.8]}
2... Bg7 {[%clk 0:03:01]} 3. g3 {[%clk 0:02:57]} 3... e5 {[%clk 0:03:01.1]} 4.
Bg2 {[%clk 0:02:53.8]} 4... Ne7 {[%clk 0:03:01.3]} 5. Nc3 {[%clk 0:02:53.2]}
5... O-O {[%clk 0:03:01.7]} 6. O-O {[%clk 0:02:53.2]} 6... d6 {[%clk 0:03:00.1]}
7. d4 {[%clk 0:02:52]} 7... exd4 {[%clk 0:02:59.9]} 8. Nxd4 {[%clk 0:02:51.8]}
8... Nbc6 {[%clk 0:03:00.2]} 9. Nc2 {[%clk 0:02:50.9]} 9... Be6 {[%clk
0:02:58.5]} 10. Ne3 {[%clk 0:02:49.4]} 10... Rb8 {[%clk 0:02:57.9]} 11. Ncd5
{[%clk 0:02:48.6]} 11... Ne5 {[%clk 0:02:54.5]} 12. Rb1 {[%clk 0:02:35.5]} 12...
c6 {[%clk 0:02:54]} 13. Nxe7+ {[%clk 0:02:25.5]} 13... Qxe7 {[%clk 0:02:54.9]}
14. b3 {[%clk 0:02:25.7]} 14... f5 {[%clk 0:02:54]} 15. f4 {[%clk 0:02:19.9]}
15... Nd7 {[%clk 0:02:51.3]} 16. Nc2 {[%clk 0:02:14.8]} 16... Rbd8 {[%clk
0:02:45.6]} 17. Nd4 {[%clk 0:02:13.9]} 17... Nc5 {[%clk 0:02:32.4]} 18. Nxe6
{[%clk 0:02:13]} 18... Qxe6 {[%clk 0:02:33.3]} 19. e3 {[%clk 0:02:08.4]} 19...
a5 {[%clk 0:02:31.4]} 20. Re1 {[%clk 0:02:06.9]} 20... Ne4 {[%clk 0:02:26.3]}
21. Qc2 {[%clk 0:02:06.3]} 21... Nc3 {[%clk 0:02:18.2]} 22. Rb2 {[%clk
0:02:02.3]} 22... Ne4 {[%clk 0:02:14.9]} 23. Rb1 {[%clk 0:01:58.9]} 23... Rfe8
{[%clk 0:02:14.3]} 24. Bb2 {[%clk 0:01:56.1]} 24... Bxb2 {[%clk 0:02:13.7]} 25.
Qxb2 {[%clk 0:01:53.3]} 25... Qf6 {[%clk 0:02:10]} 26. Qxf6 {[%clk 0:01:50.2]}
26... Nxf6 {[%clk 0:02:10.9]} 27. h3 {[%clk 0:01:49.5]} 27... Ne4 {[%clk
0:02:10.8]} 28. g4 {[%clk 0:01:48.3]} 28... Kf7 {[%clk 0:02:10.3]} 29. Kh2
{[%clk 0:01:43]} 29... d5 {[%clk 0:02:07.6]} 30. cxd5 {[%clk 0:01:40.6]} 30...
Rxd5 {[%clk 0:02:08.5]} 31. Rbd1 {[%clk 0:01:36.7]} 31... Red8 {[%clk
0:02:05.9]} 32. Rxd5 {[%clk 0:01:33.6]} 32... Rxd5 {[%clk 0:02:06.8]} 33. gxf5
{[%clk 0:01:28.9]} 33... gxf5 {[%clk 0:02:05.8]} 34. Bxe4 {[%clk 0:01:28.1]}
34... fxe4 {[%clk 0:02:06.7]} 35. Re2 {[%clk 0:01:28]} 35... Kf6 {[%clk
0:02:05.4]} 36. Kg3 {[%clk 0:01:27.6]} 36... Rd1 {[%clk 0:02:03.7]} 37. Rc2
{[%clk 0:01:23.5]} 37... Re1 {[%clk 0:02:00.4]} 38. Kf2 {[%clk 0:01:22.8]} 38...
Ra1 {[%clk 0:01:56.4]} 39. Kg3 {[%clk 0:01:16.4]} 39... Rf1 {[%clk 0:01:55.9]}
40. Rc5 {[%clk 0:01:00.2]} 40... a4 {[%clk 0:01:50.3]} 41. bxa4 {[%clk
0:00:53.5]} 41... Rf3+ {[%clk 0:01:50.2]} 42. Kg4 {[%clk 0:00:53.5]} 42... Rxe3
{[%clk 0:01:51.1]} 43. a5 {[%clk 0:00:53.1]} 43... Ra3 {[%clk 0:01:50]} 44. Rf5+
{[%clk 0:00:52.2]} 44... Kg6 {[%clk 0:01:49.1]} 45. Re5 {[%clk 0:00:50.5]} 45...
Rxa2 {[%clk 0:01:45.9]} 46. f5+ {[%clk 0:00:48]} 46... Kf7 {[%clk 0:01:45]} 47.
Rxe4 {[%clk 0:00:47.7]} 47... Rxa5 {[%clk 0:01:45.1]} 48. Rb4 {[%clk 0:00:45.4]}
48... Rb5 {[%clk 0:01:44.1]} 49. Rd4 {[%clk 0:00:42.4]} 49... Rd5 {[%clk
0:01:41.5]} 50. Rb4 {[%clk 0:00:36.9]} 50... b5 {[%clk 0:01:41.2]} 51. Re4
{[%clk 0:00:36.6]} 51... c5 {[%clk 0:01:39.5]} 52. Re6 {[%clk 0:00:35.8]} 52...
b4 {[%clk 0:01:38.9]} 53. Rb6 {[%clk 0:00:32.1]} 53... Rd1 {[%clk 0:01:35.6]}
54. Rb7+ {[%clk 0:00:31.4]} 54... Kf6 {[%clk 0:01:32.9]} 55. Rc7 {[%clk
0:00:26]} 55... Rg1+ {[%clk 0:01:30.9]} 56. Kh4 {[%clk 0:00:25.5]} 56... b3
{[%clk 0:01:29.3]} 57. Rc6+ {[%clk 0:00:23.1]} 57... Kf7 {[%clk 0:01:29.3]} 58.
Rc7+ {[%clk 0:00:18.5]} 58... Ke8 {[%clk 0:01:29.5]} 59. Rb7 {[%clk 0:00:08.2]}
59... c4 {[%clk 0:01:28.7]} 60. f6 {[%clk 0:00:05.4]} 60... c3 {[%clk
0:01:27.4]} 61. Rxb3 {[%clk 0:00:05]} 61... c2 {[%clk 0:01:27.8]} 62. Rb8+
{[%clk 0:00:04.3]} 62... Kf7 {[%clk 0:01:27.7]} 63. Rb7+ {[%clk 0:00:01.8]}
63... Kxf6 {[%clk 0:01:27.9]} 0-1

[Event "Early-Titled-Tuesday-Blitz-May-14-2024"]
[Site "Chess.com"]
[Date "2024.05.14"]
[Round "7"]
[White "SlavenPastar"]
[Black "maracayo"]
[Result "1-0"]
[WhiteElo "2626"]
[BlackElo "2363"]
[TimeControl "180+1"]
[EndTime "9:19:39 PDT"]
[Termination "SlavenPastar won by resignation"]

1. Nf3 {[%clk 0:03:00.9]} 1... d6 {[%clk 0:03:00.9]} 2. d4 {[%clk 0:03:00.4]}
2... Nf6 {[%clk 0:03:01.3]} 3. g3 {[%clk 0:02:56.3]} 3... Nbd7 {[%clk
0:02:59.7]} 4. Bg2 {[%clk 0:02:56.7]} 4... e5 {[%clk 0:02:59.3]} 5. O-O {[%clk
0:02:57.2]} 5... Be7 {[%clk 0:02:58.3]} 6. dxe5 {[%clk 0:02:55]} 6... dxe5
{[%clk 0:02:57.3]} 7. Nc3 {[%clk 0:02:55.5]} 7... c6 {[%clk 0:02:55.6]} 8. b3
{[%clk 0:02:50.1]} 8... O-O {[%clk 0:02:53.6]} 9. Bb2 {[%clk 0:02:50.7]} 9...
Qc7 {[%clk 0:02:53.4]} 10. Qc1 {[%clk 0:02:42.2]} 10... Re8 {[%clk 0:02:51.9]}
11. Rd1 {[%clk 0:02:41.3]} 11... h6 {[%clk 0:02:50.5]} 12. Nd2 {[%clk
0:02:37.6]} 12... Bf8 {[%clk 0:02:36.7]} 13. a4 {[%clk 0:02:37.1]} 13... a5
{[%clk 0:02:29.7]} 14. Nc4 {[%clk 0:02:37.1]} 14... e4 {[%clk 0:02:25.7]} 15. e3
{[%clk 0:02:30.3]} 15... Nc5 {[%clk 0:02:12.6]} 16. Ba3 {[%clk 0:02:28.2]} 16...
Bg4 {[%clk 0:02:11.8]} 17. Rd4 {[%clk 0:02:26.5]} 17... Rad8 {[%clk 0:01:59.4]}
18. Rxd8 {[%clk 0:02:22.5]} 18... Qxd8 {[%clk 0:01:55]} 19. Qd2 {[%clk 0:02:19]}
19... Qc7 {[%clk 0:01:16.7]} 20. Qd4 {[%clk 0:01:58.5]} 20... Rd8 {[%clk
0:00:48]} 21. Qe5 {[%clk 0:01:55.2]} 21... Qxe5 {[%clk 0:00:47.6]} 22. Nxe5
{[%clk 0:01:56.1]} 22... Rd2 {[%clk 0:00:43]} 23. Bxc5 {[%clk 0:01:40]} 23...
Bxc5 {[%clk 0:00:40.7]} 24. Nxe4 {[%clk 0:01:36.4]} 24... Nxe4 {[%clk
0:00:28.4]} 25. Bxe4 {[%clk 0:01:36.4]} 25... Bh3 {[%clk 0:00:25.3]} 26. Bd3
{[%clk 0:01:34.6]} 26... Bxe3 {[%clk 0:00:15.3]} 27. fxe3 {[%clk 0:01:31.8]}
27... Rg2+ {[%clk 0:00:15.4]} 28. Kh1 {[%clk 0:01:31.2]} 28... Rf2 {[%clk
0:00:11.8]} 29. Re1 {[%clk 0:01:17.4]} 29... Kf8 {[%clk 0:00:11.6]} 30. Be4
{[%clk 0:01:03]} 30... Ke7 {[%clk 0:00:11.1]} 31. Kg1 {[%clk 0:00:56]} 31... Rd2
{[%clk 0:00:09.8]} 32. Nc4 {[%clk 0:00:54.3]} 32... Rd8 {[%clk 0:00:08.5]} 33.
Bd3 {[%clk 0:00:46.8]} 33... Ra8 {[%clk 0:00:07.2]} 34. Kf2 {[%clk 0:00:46]}
34... b5 {[%clk 0:00:06.5]} 35. Ne5 {[%clk 0:00:45.2]} 35... Kd6 {[%clk
0:00:05]} 36. Nf3 {[%clk 0:00:41.6]} 36... Kc5 {[%clk 0:00:04.7]} 37. Ke2 {[%clk
0:00:40.4]} 37... Rd8 {[%clk 0:00:03.7]} 38. Kd2 {[%clk 0:00:39.9]} 38... bxa4
{[%clk 0:00:04]} 39. bxa4 {[%clk 0:00:39.6]} 39... Kb4 {[%clk 0:00:04.5]} 40.
Rb1+ {[%clk 0:00:39]} 40... Kxa4 {[%clk 0:00:04.3]} 41. Kc3 {[%clk 0:00:37.2]}
41... Be6 {[%clk 0:00:04.6]} 42. Ra1+ {[%clk 0:00:37.3]} 1-0

[Event "Early-Titled-Tuesday-Blitz-May-14-2024"]
[Site "Chess.com"]
[Date "2024.05.14"]
[Round "7"]
[White "vladgoncharov"]
[Black "DenisQ"]
[Result "1/2-1/2"]
[WhiteElo "2573"]
[BlackElo "2721"]
[TimeControl "180+1"]
[EndTime "9:19:40 PDT"]
[Termination "Game drawn by repetition"]

1. d4 {[%clk 0:03:00.9]} 1... d5 {[%clk 0:02:59.4]} 2. c4 {[%clk 0:02:52.9]}
2... c6 {[%clk 0:02:59.4]} 3. Nf3 {[%clk 0:02:52.6]} 3... Nf6 {[%clk 0:02:59.5]}
4. e3 {[%clk 0:02:52.4]} 4... Bf5 {[%clk 0:02:55.3]} 5. cxd5 {[%clk 0:02:49.9]}
5... cxd5 {[%clk 0:02:53.9]} 6. Nc3 {[%clk 0:02:50]} 6... Nc6 {[%clk 0:02:50.1]}
7. Qb3 {[%clk 0:02:45.6]} 7... Na5 {[%clk 0:02:46.2]} 8. Bb5+ {[%clk 0:02:44]}
8... Bd7 {[%clk 0:02:45.8]} 9. Qa4 {[%clk 0:02:43.8]} 9... Nc6 {[%clk
0:02:43.4]} 10. Ne5 {[%clk 0:02:37.9]} 10... Rc8 {[%clk 0:02:33.3]} 11. Nxd7
{[%clk 0:02:25.9]} 11... Qxd7 {[%clk 0:02:30.3]} 12. O-O {[%clk 0:02:22.5]}
12... e6 {[%clk 0:02:29.5]} 13. Bd2 {[%clk 0:02:21.2]} 13... a6 {[%clk
0:02:26.7]} 14. Be2 {[%clk 0:02:17.4]} 14... Bd6 {[%clk 0:02:23.8]} 15. g3
{[%clk 0:02:08.2]} 15... O-O {[%clk 0:02:20.4]} 16. Rac1 {[%clk 0:02:05.4]}
16... Rc7 {[%clk 0:02:19.8]} 17. Rfd1 {[%clk 0:01:49.3]} 17... Rfc8 {[%clk
0:02:18.9]} 18. a3 {[%clk 0:01:46.4]} 18... Qd8 {[%clk 0:02:06.7]} 19. b4 {[%clk
0:01:43.2]} 19... Na7 {[%clk 0:01:36.1]} 20. Qb3 {[%clk 0:01:25.7]} 20... g6
{[%clk 0:01:06.9]} 21. Rc2 {[%clk 0:01:24.6]} 21... Ne4 {[%clk 0:01:02.7]} 22.
Be1 {[%clk 0:01:03.2]} 22... Nb5 {[%clk 0:00:49.8]} 23. Rdc1 {[%clk 0:00:42.9]}
23... Nbxc3 {[%clk 0:00:41]} 24. Bxc3 {[%clk 0:00:42.2]} 24... h5 {[%clk
0:00:25.6]} 25. Be1 {[%clk 0:00:36.8]} 25... Rxc2 {[%clk 0:00:24.2]} 26. Rxc2
{[%clk 0:00:36.7]} 26... Rxc2 {[%clk 0:00:24]} 27. Qxc2 {[%clk 0:00:37.5]} 27...
h4 {[%clk 0:00:24]} 28. Kg2 {[%clk 0:00:36.2]} 28... Kg7 {[%clk 0:00:20.6]} 29.
f3 {[%clk 0:00:31.4]} 29... Nf6 {[%clk 0:00:17.8]} 30. gxh4 {[%clk 0:00:31.6]}
30... Nh5 {[%clk 0:00:14.5]} 31. f4 {[%clk 0:00:22.9]} 31... Kh6 {[%clk
0:00:14]} 32. Kh3 {[%clk 0:00:16]} 32... Ng7 {[%clk 0:00:13]} 33. Bd3 {[%clk
0:00:13.7]} 33... Nh5 {[%clk 0:00:09.3]} 34. Be2 {[%clk 0:00:11.4]} 34... Ng7
{[%clk 0:00:09.3]} 35. Bd3 {[%clk 0:00:11.3]} 35... Nh5 {[%clk 0:00:09.3]} 36.
Be2 {[%clk 0:00:11.5]} 1/2-1/2

[Event "Early-Titled-Tuesday-Blitz-May-14-2024"]
[Site "Chess.com"]
[Date "2024.05.14"]
[Round "7"]
[White "Good_Knight_Kiss"]
[Black "Djager97"]
[Result "0-1"]
[WhiteElo "2351"]
[BlackElo "2544"]
[TimeControl "180+1"]
[EndTime "9:19:45 PDT"]
[Termination "Djager97 won by checkmate"]

1. e4 {[%clk 0:02:59.1]} 1... e5 {[%clk 0:02:59]} 2. Nf3 {[%clk 0:02:58.6]} 2...
Nc6 {[%clk 0:02:59.7]} 3. Bb5 {[%clk 0:02:57.5]} 3... a6 {[%clk 0:02:59.5]} 4.
Ba4 {[%clk 0:02:57.7]} 4... Nf6 {[%clk 0:02:59.2]} 5. O-O {[%clk 0:02:57.5]}
5... b5 {[%clk 0:02:59.8]} 6. Bb3 {[%clk 0:02:57.5]} 6... Bc5 {[%clk 0:03:00.4]}
7. a4 {[%clk 0:02:57.7]} 7... Rb8 {[%clk 0:02:59]} 8. c3 {[%clk 0:02:56.1]} 8...
d6 {[%clk 0:02:57.8]} 9. d4 {[%clk 0:02:56.1]} 9... Bb6 {[%clk 0:02:56.3]} 10.
a5 {[%clk 0:02:56.5]} 10... Ba7 {[%clk 0:02:55.9]} 11. Be3 {[%clk 0:02:55]}
11... Bb7 {[%clk 0:02:54.9]} 12. dxe5 {[%clk 0:02:50.3]} 12... dxe5 {[%clk
0:02:22.6]} 13. Bxa7 {[%clk 0:02:46.4]} 13... Nxa7 {[%clk 0:02:20]} 14. Nxe5
{[%clk 0:02:38.1]} 14... O-O {[%clk 0:02:19.6]} 15. Qxd8 {[%clk 0:02:09.8]}
15... Rbxd8 {[%clk 0:02:20.5]} 16. f3 {[%clk 0:02:08.9]} 16... c5 {[%clk
0:02:13.7]} 17. h3 {[%clk 0:01:43.2]} 17... c4 {[%clk 0:02:13.1]} 18. Bc2 {[%clk
0:01:42.3]} 18... Rfe8 {[%clk 0:02:13.7]} 19. Ng4 {[%clk 0:01:41.7]} 19... Nh5
{[%clk 0:02:02]} 20. Kf2 {[%clk 0:01:33.4]} 20... Nf4 {[%clk 0:01:58.1]} 21. Ne3
{[%clk 0:01:23.1]} 21... Nc6 {[%clk 0:01:47.1]} 22. b4 {[%clk 0:00:46.4]} 22...
Ne5 {[%clk 0:01:23.4]} 23. h4 {[%clk 0:00:38.4]} 23... g6 {[%clk 0:01:07.2]} 24.
g3 {[%clk 0:00:32]} 24... Nfd3+ {[%clk 0:01:03]} 25. Ke2 {[%clk 0:00:29.5]}
25... f5 {[%clk 0:00:49.4]} 26. exf5 {[%clk 0:00:25.3]} 26... Nxf3 {[%clk
0:00:37.2]} 27. Rxf3 {[%clk 0:00:18.5]} 27... Bxf3+ {[%clk 0:00:38.1]} 28. Kxf3
{[%clk 0:00:18.6]} 28... Ne1+ {[%clk 0:00:38.8]} 29. Kf2 {[%clk 0:00:17.6]}
29... Rxe3 {[%clk 0:00:39.3]} 30. fxg6 {[%clk 0:00:09.2]} 30... Nxc2 {[%clk
0:00:38.3]} 31. gxh7+ {[%clk 0:00:08.2]} 31... Kxh7 {[%clk 0:00:38.1]} 32. Ra2
{[%clk 0:00:08.8]} 32... Rf8+ {[%clk 0:00:38.1]} 33. Kg2 {[%clk 0:00:08.5]}
33... Re2+ {[%clk 0:00:38.3]} 34. Kh3 {[%clk 0:00:08.9]} 34... Rf1 {[%clk
0:00:34.3]} 35. Na3 {[%clk 0:00:08.3]} 35... Rh1+ {[%clk 0:00:30.7]} 36. Kg4
{[%clk 0:00:08.3]} 36... Ne3+ {[%clk 0:00:31.2]} 37. Kf3 {[%clk 0:00:08.3]}
37... Rxa2 {[%clk 0:00:32.1]} 38. Kxe3 {[%clk 0:00:08.5]} 38... Rxa3 {[%clk
0:00:32.4]} 39. Kd4 {[%clk 0:00:08.6]} 39... Rd1+ {[%clk 0:00:31.7]} 40. Kc5
{[%clk 0:00:07.8]} 40... Rxc3 {[%clk 0:00:32]} 41. Kb6 {[%clk 0:00:08.3]} 41...
Rb3 {[%clk 0:00:32.4]} 42. Kxa6 {[%clk 0:00:08.5]} 42... Rxb4 {[%clk 0:00:32]}
43. g4 {[%clk 0:00:06.7]} 43... c3 {[%clk 0:00:32.2]} 44. g5 {[%clk 0:00:07.1]}
44... c2 {[%clk 0:00:32.5]} 45. h5 {[%clk 0:00:07.6]} 45... c1=Q {[%clk
0:00:32.8]} 46. g6+ {[%clk 0:00:08.1]} 46... Kh6 {[%clk 0:00:33.2]} 47. g7
{[%clk 0:00:08.4]} 47... Qc6+ {[%clk 0:00:33.6]} 48. Ka7 {[%clk 0:00:08.3]}
48... Rd7+ {[%clk 0:00:34.2]} 49. Kb8 {[%clk 0:00:08.5]} 49... Qb7# {[%clk
0:00:34.7]} 0-1